Cogmind - Beta 9.6 *** ADVENTURER MODE // 2020.07.10 @ 00:12:41 Player: lcbb_tuk Result: Destroyed by Y-45 Defender with Beam Rifle Performance ------------- Evolutions (2) 1000 Regions Visited (3) 600 Robots Destroyed (37) 185 Value Destroyed (1067) 1067 Prototype IDs (0) 0 Alien Tech Used (0) 0 Bonus (219) 219 TOTAL SCORE: 3071 Bonus ------- Pacifist 200 High Alert Combat Kills 19 Cogmind --------- Core Integrity 0/550 Matter 280/300 Energy 64/100 System Corruption 4% Temperature Cool (-90) Movement Flying (40) Location -8/Materials Parts ------- > --- POWER (4) -------- (None) > --- PROPULSION (3) --- Cesium-ion Thruster > --- UTILITY (2) ------ Cryofiber Web System Shield > --- WEAPON (2) ------- (None) > --- INVENTORY (4) ---- (None) Peak State ------------ > --- POWER ------------ Improved Ion Engine Improved Ion Engine Deuterium Engine Light Nuclear Core > --- PROPULSION ------- Titanium Leg Titanium Leg Cesium-ion Thruster > --- UTILITY ---------- System Shield System Shield > --- WEAPON ----------- Heavy EM Pulse Gun Ion Cannon > --- INVENTORY -------- Light Nuclear Core Light Nuclear Core Light Nuclear Core [Rating: 30] Favorites ----------- Power Improved Ion Engine Engine Improved Ion Engine Power Core Light Nuclear Core Propulsion Flight Unit Leg Titanium Leg Flight Unit Flight Unit Utility System Shield Device Cryofiber Web Storage Medium Storage Unit Processor Visual Processing Unit Hackware System Shield Protection Light Armor Plating Weapon Particle Gun Energy Gun Particle Gun Energy Cannon Ion Cannon Ballistic Gun Assault Rifle Special Weapon Plasma Cutter Build | -11 -10 -9 -8 ------- Run | Scr Mat Mat Mat Slots Evolved 4 | . . 2 2 Power 3 | . . 2 1 Propulsion 1 | . . . 1 Utility . | . . . . Weapon . | . . . . Parts Attached 52 | 6 3 25 18 Power 18 | 1 . 11 6 Engine 14 | 1 . 11 2 Core 4 | . . . 4 Reactor . | . . . . Propulsion 11 | 2 . 4 5 Treads . | . . . . Leg 5 | 2 . . 3 Wheel . | . . . . Hover . | . . . . Flight 6 | . . 4 2 Utility 9 | 1 2 5 1 Device 1 | . . . 1 Storage 2 | 1 1 . . Processor 3 | . . 3 . Hackware 2 | . . 2 . Protection 1 | . 1 . . Artifact . | . . . . Weapon 14 | 2 1 5 6 Energy Gun 11 | 1 1 5 4 Energy Cannon 1 | . . . 1 Ballistic Gun 1 | 1 . . . Ballistic Cannon . | . . . . Launcher . | . . . . Special Weapon 1 | . . . 1 Impact Weapon . | . . . . Slashing Weapon . | . . . . Piercing Weapon . | . . . . Special Melee Weapon . | . . . . Unidentified Prototypes . | . . . . Parts Lost 23 | . . 5 18 Power 9 | . . 2 7 Propulsion 3 | . . . 3 Utility 2 | . . 1 1 Weapon 9 | . . 2 7 Highest Loss Streak 9 | . . 2 9 Average Slot Usage (%) 88 | . 86 94 83 Engine 24 | . 14 27 23 Core 3 | . . . 7 Leg 7 | . 28 4 8 Flight 13 | . . 17 10 Storage 4 | . 14 6 . Processor 3 | . . 6 . Hackware 10 | . . 6 17 Protection 1 | . . 2 . Energy Gun 12 | . 14 14 10 Energy Cannon 1 | . . . 2 Ballistic Gun 4 | . 14 7 . Naked Turns . | . . . . Heaviest Build 37 | 13 21 27 37 Greatest Support 34 | 20 20 20 34 Greatest Overweight (x) 6 | 2 1 3 6 Average Overweight (x) 1 | . . 1 2 Largest Inventory Capacity 10 | 6 10 8 4 Average Capacity 5 | 4 7 6 4 Most Carried 7 | . 5 7 4 Average Carried 3 | . 1 4 2 Final Capacity 8 | 6 8 4 4 Final Carried 5 | . 5 4 . Class Distribution -------------------- 55% | Hacker-Mutant 23% | Mutant 20% | Scavenger-Mutant Dominant Class ---------------- Mutant | -10/Materials Scavenger-Mutant | -9/Materials Hacker-Mutant | -8/Materials Resources | -11 -10 -9 -8 ----------- Run | Scr Mat Mat Mat Matter Collected 840 | 225 45 450 120 Remotely . | . . . . Salvage Created 1345 | . . 934 411 Parts 88 | . . 68 20 Haulers Intercepted . | . . . . Recyclers Shooed 3 | . . 3 . Parts Field Recycled . | . . . . Retrieved Matter . | . . . . Parts Self-Destructed . | . . . . Prevented . | . . . . Kills | -11 -10 -9 -8 ------- Run | Scr Mat Mat Mat Combat Hostiles Destroyed 30 | . . 22 8 Melee 1 | . . . 1 Guns 24 | . . 22 2 Cannons 5 | . . . 5 Classes Destroyed 8 | . . 8 . Worker 1 | . . 1 . Builder 2 | . . 2 . Recycler 1 | . . 1 . Watcher 3 | . . 3 . Swarmer 8 | . . 8 . Grunt 17 | . . 9 8 Duelist 1 | . . 1 . Sentry 4 | . . 4 . Best Kill Streak 5 | . . 5 2 Combat Bots Only 4 | . . 4 2 Max Kills in Single Turn 2 | . . 2 1 Gunslinging 1 | . . 1 . Exploded . | . . . . Melee 1 | . . . 1 Uniques/NPCs Destroyed . | . . . . Combat | -11 -10 -9 -8 -------- Run | Scr Mat Mat Mat Damage Taken 2388 | . . 761 1627 Core 659 | . . 104 555 Absorbed by Shields . | . . . . Core Remaining (%) 91 | 100 100 74 . Volleys Fired 120 | . . 77 43 Largest 2 | . . 2 2 Hottest 125 | . . 115 125 Shots Fired 208 | . . 149 59 Gun 180 | . . 149 31 Cannon 16 | . . . 16 Launcher . | . . . . Special 12 | . . . 12 Kinetic 69 | . . 69 . Thermal 92 | . . 45 47 Explosive . | . . . . Electromagnetic 47 | . . 35 12 Robot Hit Streak 21 | . . 21 21 Robot Miss Streak 5 | . . 5 2 Penetration Max . | . . . . Secondary Targets 4 | . . 4 . Max Gunslinging Chain 1 | . . 1 . Shots Hit Robots 151 | . . 105 46 Core Hits 79 | . . 47 32 Critical Hits 1 | . . . 1 Critical Kills 1 | . . . 1 Critical Parts Destroyed . | . . . . Melee Attacks . | . . . . Impact . | . . . . Slashing . | . . . . Piercing . | . . . . Sneak Attacks . | . . . . Combat Hostiles . | . . . . Follow-up Attacks . | . . . . Damage Inflicted 2322 | . . 1487 835 Guns 1785 | . . 1440 345 Cannons 278 | . . . 278 Explosions 32 | . . 32 . Melee . | . . . . Ramming 93 | . . 15 78 Kinetic 589 | . . 589 . Thermal 1175 | . . 547 628 Explosive . | . . . . Electromagnetic 465 | . . 336 129 Impact . | . . . . Slashing . | . . . . Piercing . | . . . . Highest Corruption 4 | . . 3 4 Average Corruption 2 | . . 2 3 Corruption Purged . | . . . . Effects 18 | . . 18 . Message Errors 4 | . . 4 . Matter Fused 1 | . . 1 . Heat Flow Errors 2 | . . 2 . Energy Discharges 5 | . . 5 . Targeting Errors 5 | . . 5 . Weapon Failures 1 | . . 1 . Overload Shots . | . . . . Overflow Damage 22 | . . 3 19 Projectiles 19 | . . . 19 Explosions 3 | . . 3 . Melee . | . . . . Knockbacks . | . . . . Impact . | . . . . Kinetic . | . . . . Secondary . | . . . . Self-Inflicted Damage 54 | . . 23 31 Shots 1 | . . 1 . Rammed 47 | . . 5 42 Targets Rammed 48 | . . 6 42 Kicked 1 | . . 1 . Crushed . | . . . . Highest Temperature 577 | . . 572 577 Average Temperature 192 | . . 152 237 Received Heat Transfer 1311 | . . 312 999 Effects 62 | . . 20 42 Shutdowns 32 | . . 8 24 Energy Bleed 8 | . . 4 4 Interference 9 | . . 5 4 Matter Decay 3 | . . . 3 Damage (minor) 7 | . . 3 4 Damage (core) 3 | . . . 3 Siege Activations . | . . . . Robots Corrupted . | . . . . Combat Hostiles . | . . . . Parts Fried 1 | . . 1 . Impact Corruptions . | . . . . Robots Melted . | . . . . Combat Hostiles . | . . . . Parts Melted 7 | . . 2 5 Heat Transferred 2899 | . . 1493 1406 Parts Sabotaged . | . . . . Parts Stolen . | . . . . Parts Stripped . | . . . . Power Chain Reactions 1 | . . 1 . Missiles Intercepted . | . . . . Alert | -11 -10 -9 -8 ------- Run | Scr Mat Mat Mat Peak Influence 419 | . . 419 118 Average Influence 125 | . . 236 28 Maximum Alert Level 2 | . . 2 . Low Security (%) 63 | 100 100 24 100 Level 1 32 | . . 67 . Level 2 3 | . . 7 . Level 3 . | . . . . Level 4 . | . . . . Level 5 . | . . . . High Security . | . . . . Max Security . | . . . . Squads Dispatched 5 | . . 3 2 Investigation 4 | . . 2 2 Extermination . | . . . . Reinforcement 1 | . . 1 . Assault . | . . . . Garrison . | . . . . Intercept . | . . . . Construction Impeded . | . . . . Haulers Reinforced . | . . . . Stealth | -11 -10 -9 -8 --------- Run | Scr Mat Mat Mat Distress Signals 1 | . . 1 . Communications Jammed . | . . . . Distress Signals . | . . . . Times Spotted 42 | . . 29 13 Peak Tracking Total 7 | . . 7 3 Tactical Retreats 4 | . . 2 2 Traps | -11 -10 -9 -8 ------- Run | Scr Mat Mat Mat Traps Triggered . | . . . . Indirectly . | . . . . Trap Hack Attempts . | . . . . Triggered . | . . . . Disarmed . | . . . . Reprogrammed . | . . . . Reused . | . . . . Traps Extracted . | . . . . Installed . | . . . . Triggered . | . . . . Machines | -11 -10 -9 -8 ---------- Run | Scr Mat Mat Mat Machines Disabled . | . . . . Max in Single Turn . | . . . . Machines Sabotaged . | . . . . Garrisons Compromised . | . . . . Overloaded Fab Kills . | . . . . Fab Network Shutdowns . | . . . . Hacking | -11 -10 -9 -8 --------- Run | Scr Mat Mat Mat Machines Accessed 5 | . . 2 3 Terminals 4 | . . 1 3 Fabricators . | . . . . Repair Stations . | . . . . Recycling Units 1 | . . 1 . Scanalyzers . | . . . . Garrison Access . | . . . . Total Hacks 38 | . . 9 29 Successful 24 | . . 3 21 Failed 14 | . . 6 8 Catastrophic 2 | . . . 2 Database Lockouts . | . . . . Manual . | . . . . Terminals 32 | . . 3 29 Fabricators . | . . . . Repair Stations . | . . . . Recycling Units 6 | . . 6 . Scanalyzers . | . . . . Garrison Access . | . . . . Terminal Hacks 22 | . . 1 21 Record 2 | . . . 2 Level Access Points 1 | . . . 1 Branch Access Points 1 | . . 1 . Emergency Access Points 2 | . . . 2 Alert Level 13 | . . . 13 Hauler Manifests 1 | . . . 1 Registered Components 1 | . . . 1 Zone Layout 1 | . . . 1 Fabricator Hacks . | . . . . Repair Station Hacks . | . . . . Recycling Unit Hacks 2 | . . 2 . Retrieve Components 2 | . . 2 . Scanalyzer . | . . . . Garrison Access Hacks . | . . . . Unauthorized Hacks . | . . . . Terminals . | . . . . Fabricators . | . . . . Repair Stations . | . . . . Recycling Units . | . . . . Scanalyzers . | . . . . Garrison Access . | . . . . Data Cores Recovered . | . . . . Used . | . . . . Hacking Detections 5 | . . 2 3 Full Trace Events 4 | . . 2 2 Feedback Events 1 | . . 1 . Corruption 1 | . . 1 . Feedback Blocked . | . . . . Robot Schematics Acquired . | . . . . Robots Built . | . . . . Matter . | . . . . Time . | . . . . Total Robot Build Rating . | . . . . Part Schematics Acquired . | . . . . Parts Built . | . . . . Matter . | . . . . Time . | . . . . Total Part Build Rating . | . . . . Parts Repaired . | . . . . Time . | . . . . Parts Recycled . | . . . . Recycled Matter . | . . . . Retrieved Matter . | . . . . Retrieved Components 10 | . . 10 . Parts Scanalyzed . | . . . . Part Schematics Acquired . | . . . . Parts Damaged . | . . . . Bothacking | -11 -10 -9 -8 ------------ Run | Scr Mat Mat Mat Used RIF Installer . | . . . . Robots Hacked . | . . . . Non-combat . | . . . . Combat . | . . . . Robot Hacks Applied . | . . . . Relay Couplers Released . | . . . . Robots Rewired . | . . . . Allies Hacked . | . . . . Hacks Repelled . | . . . . Allies | -11 -10 -9 -8 -------- Run | Scr Mat Mat Mat Total Allies . | . . . . Largest Group . | . . . . Highest-Rated Group . | . . . . Highest-Rated Ally . | . . . . Total Orders . | . . . . Ally Attacks . | . . . . Total Damage . | . . . . Kills . | . . . . Allies Corrupted . | . . . . Allies Melted . | . . . . Intel | -11 -10 -9 -8 ------- Run | Scr Mat Mat Mat Robot Analysis Total . | . . . . Derelict Logs Recovered . | . . . . Drone Launches . | . . . . Drone Recoveries . | . . . . Exploration | -11 -10 -9 -8 ------------- Run | Scr Mat Mat Mat Turns Passed 2813 | 76 196 1354 1187 Spaces Moved 1093 | 60 155 465 413 Core 105 | 19 . . 86 Treads . | . . . . Legs 418 | 41 155 129 93 Wheels . | . . . . Hover . | . . . . Flight 570 | . . 336 234 Fastest Speed 40 | 50 120 117 40 Average Speed 198 | 112 120 217 217 Slowest Speed 540 | 150 150 277 540 Overloaded Moves . | . . . . Propulsion Burnouts . | . . . . Robots Hopped 1 | . . . 1 Cave-ins Triggered . | . . . . Exploration Rate (%) 23 | 4 29 28 34 Regions Visited 3 Branch Regions . Pre-discovered Areas . | . . . . Known Exits Taken . | . . . . Unknown Exits Taken 3 | 1 1 1 . Scrap Searched . | . . . . Spaces Dug . | . . . . Terrain Destroyed 4 | . . 3 1 Melee . | . . . . Projectile 1 | . . . 1 AOE 3 | . . 3 . Actions | -11 -10 -9 -8 --------- Run | Scr Mat Mat Mat Total 1462 | 66 162 644 590 Wait 119 | 1 . 58 60 Move 1088 | 59 154 464 411 Hop 1 | . . . 1 Pick Up 11 | . 4 3 4 Fast Attach 25 | 6 2 6 11 Attach 10 | . . 5 5 Detach 2 | . . . 2 Swap 17 | . 1 14 2 Drop 21 | . 1 11 9 Fire 120 | . . 77 43 Melee . | . . . . Ram 47 | . . 5 42 Kick 1 | . . 1 . Crush . | . . . . Escape Stasis . | . . . . Rewire . | . . . . Trap . | . . . . Miscellaneous . | . . . . Route ------- -11/Scrapyard -10/Materials -9/Materials (discovered 5 exits: *Mat / Min x2 / *Sto x2) -8/Materials (discovered 3 exits: Fac x3) History --------- Turn | Location | Event 49 | -11/Scrapyard | Discovered new exit (range 15) 77 | -11/Scrapyard | Entered Materials 267 | -10/Materials | Discovered new exit (range 3) 273 | -10/Materials | Entered another Materials area 273 | -9/Materials | Evolved 2 slots: Power x2 273 | -9/Materials | Discovered new exit (range 14) 302 | -9/Materials | Build established: Mutant 822 | -9/Materials | Discovered new exit (range 10) 855 | -9/Materials | Identified exit to Mines 855 | -9/Materials | Identified exit to Storage 1082 | -9/Materials | Build established: Scavenger-Mutant 1526 | -9/Materials | Build established: Hacker-Mutant 1627 | -9/Materials | Entered another Materials area 1627 | -8/Materials | Evolved 2 slots: Power x1, Propulsion x1 2341 | -8/Materials | Identified exit to Factory 2539 | -8/Materials | Core integrity fell below 50% 2591 | -8/Materials | Lost 5 parts (2p1n2w) 2774 | -8/Materials | Lost 9 parts (4p2n3w) 2782 | -8/Materials | Core integrity fell below 20% 2814 | -8/Materials | Destroyed by Y-45 Defender with Beam Rifle Last Messages --------------- 02742_ Titanium Leg permanently disabled. 02742_ Destabilizing: Short circuit. 02743_ Slammed into G-47 Trooper. 02743_ Broken Titanium Leg permanently disabled. 02743_ Destabilizing: Short circuit. 02743_ Broken Titanium Leg destroyed. 02744_ Slammed into G-47 Trooper. 02744_ G-47 Trooper destroyed. 02744_ K-01 Serf collects debris. 02748_ Connecting with Terminal... 02748_ ALERT: Suspicious activity at Terminal M001. Dispatching Investigation squad. 02775_ Slammed into G-47 Trooper. 02783_ Destabilizing: System corrupted (+1). 02784_ Slammed into G-47 Trooper. 02784_ System Shield destroyed. 02784_ System corrupted by crushing effect (+3). 02785_ Slammed into G-47 Trooper. 02797_ Acquired Cryofiber Web. 02802_ Acquired Cesium-ion Thruster. Map ----- +----------------------------------------------------+ | | | | | | | | | | | | | | | | | | | | | | | | | | | | | | | | | | | | | ?????????????????????????????????????????????????? | | ?????????????????????????????????????????????????? | | ?????????????????????????????????????????????????? | | ????????????????#############????????????????????? | | ???????????###### ?????????????????????? | | ?????????? #?????????????????????? | | ??